bitfinex/quotes_SOLUSD_20241122
["timestamp","ask_amount","ask_price","bid_price","bid_amount"]
[1732236496146,0.97878004,254.81,254.76,19.13824613]
[1732236496343,0.97878004,254.81,254.68,33.35647]
[1732236496344,155.43824613,254.8,254.71,19.13824613]
[1732236496635,136.3,254.79,254.71,19.13824613]
[1732236497231,19.13824613,254.78,254.69,29.97234613]
[1732236497444,4.90338004,254.81,254.69,29.97234613]
[1732236497445,25.34554613,254.7,254.69,2.0]
[1732236497733,136.3,254.71,254.69,2.0]
[1732236497935,136.3,254.77,254.69,14.3678]
[1732236498142,136.3,254.77,254.7,19.13824613]
[1732236498323,4.90328004,254.81,254.69,2.0]
[1732236498324,19.13824613,254.73,254.69,2.0]
[1732236498527,136.3,254.76,254.69,2.0]
[1732236498528,19.13824613,254.75,254.69,2.0]
[1732236499426,23.06364613,254.75,254.69,2.0]
[1732236499929,19.13824613,254.7,254.69,2.0]
[1732236501233,19.13824613,254.72,254.69,2.0]
[1732236501439,23.06384613,254.74,254.69,2.0]
[1732236501771,159.36324613,254.78,254.69,21.13824613]
[1732236502039,23.06324613,254.78,254.69,21.13824613]
[1732236502233,19.13824613,254.78,254.69,21.13824613]
[1732236502431,155.43824613,254.8,254.71,19.13824613]
[1732236502939,0.97878004,254.81,254.73,19.13824613]
[1732236503140,19.13824613,254.8,254.71,19.13824613]
[1732236503324,19.13824613,254.8,254.69,14.3678]
[1732236503325,19.13824613,254.78,254.69,2.0]
[1732236503833,19.13824613,254.78,254.7,19.13824613]
[1732236504024,19.13824613,254.76,254.69,2.0]
[1732236504528,19.13824613,254.78,254.69,24.67184613]
[1732236505546,141.20328004,254.81,254.73,19.13824613]
[1732236505848,0.97878004,254.81,254.73,19.13824613]
[1732236507038,0.97878004,254.81,254.75,19.13824613]
[1732236507236,4.90328004,254.81,254.73,19.13824613]
[1732236507739,0.97878004,254.81,254.75,19.13824613]
[1732236508147,0.97878004,254.81,254.77,19.13824613]
[1732236508852,0.97878004,254.81,254.73,12.3658]
[1732236509062,24.04142617,254.81,254.73,8.8328]
[1732236509434,0.97878004,254.81,254.74,19.13824613]
[1732236509657,0.97878004,254.81,254.75,3.5328]
[1732236509837,0.97878004,254.81,254.76,19.13824613]
[1732236510045,0.97878004,254.81,254.78,19.13824613]
[1732236510435,0.97878004,254.81,254.76,19.13824613]
[1732236511232,0.97878004,254.81,254.79,19.13824613]
[1732236511643,0.97878004,254.81,254.79,22.67044613]
[1732236512757,0.97878004,254.81,254.79,12.363]
[1732236512933,0.97878004,254.81,254.8,19.13824613]
[1732236513330,0.97878004,254.81,254.79,12.363]
[1732236513652,0.97878004,254.81,254.79,12.3631]
[1732236513862,0.97878004,254.81,254.8,19.13824613]
[1732236514031,0.97878004,254.81,254.69,2.0]
[1732236514236,20.11702617,254.81,254.74,8.8324]
[1732236514645,0.97878004,254.81,254.74,27.97064613]
[1732236515057,0.97878004,254.81,254.76,19.13824613]
[1732236515250,0.97878004,254.81,254.78,19.13824613]
[1732236515432,0.97878004,254.81,254.8,19.13824613]
[1732236515635,0.97878004,254.81,254.8,22.67034613]
[1732236516140,0.97878004,254.81,254.8,3.5321]
[1732236517160,0.97878004,254.81,254.8,23.5321]
[1732236517342,0.97878004,254.81,254.8,35.52663216]
[1732236517547,0.97878004,254.81,254.8,27.52116432]
[1732236517746,0.97878004,254.81,254.8,15.52663216]
[1732236517961,0.97878004,254.81,254.69,2.0]
[1732236518271,11.99453216,254.76,254.69,2.0]
[1732236518557,11.99453216,254.78,254.7,12.3674]
[1732236519564,11.99453216,254.78,254.7,24.36193216]
[1732236520267,11.99453216,254.78,254.7,8.8339]
[1732236520563,11.99453216,254.74,254.69,2.0]
[1732236520767,19.21238163,254.74,254.69,2.0]
[1732236521061,19.21238163,254.76,254.69,2.0]
[1732236521265,136.3,254.79,254.7,19.21238163]
[1732236521683,19.21238163,254.72,254.69,2.0]
[1732236521972,19.21238163,254.7,254.69,2.0]
[1732236522463,23.13848163,254.7,254.69,2.0]
[1732236523778,46.91536563,254.7,254.69,2.0]
[1732236525155,4.1919,254.69,254.55,19.21238163]
[1732236525466,19.21238163,254.64,254.55,19.21238163]
[1732236526145,136.3,254.68,254.44,47.09548754]
[1732236526146,19.21238163,254.66,254.57,19.21238163]
[1732236526556,136.3,254.68,254.59,19.21238163]
[1732236526557,155.51238163,254.68,254.59,19.21238163]
[1732236526759,136.3,254.67,254.54,12.375]
[1732236526966,19.21238163,254.65,254.56,19.21238163]
[1732236528380,136.3,254.67,254.6,19.21238163]
[1732236529471,155.51238163,254.67,254.58,19.21238163]
[1732236529674,159.43908163,254.67,254.58,19.21238163]
[1732236529975,155.51238163,254.67,254.58,19.21238163]
[1732236530175,19.21238163,254.67,254.58,19.21238163]
[1732236530381,19.21238163,254.67,254.58,22.74748163]
[1732236530668,19.21238163,254.69,254.6,19.21238163]
[1732236530873,155.51238163,254.71,254.64,19.21238163]
[1732236531056,19.21238163,254.71,254.64,19.21238163]
[1732236531753,19.21238163,254.71,254.62,19.21238163]
[1732236531958,19.21238163,254.69,254.6,19.21238163]
[1732236532184,19.21238163,254.65,254.56,22.74778163]
[1732236532473,19.21238163,254.65,254.56,31.58648163]
[1732236532665,19.21238163,254.65,254.58,19.21238163]
[1732236532874,155.51238163,254.67,254.6,19.21238163]
[1732236533059,155.51238163,254.67,254.58,19.21238163]
[1732236534359,19.21238163,254.65,254.59,3.535]
[1732236535681,19.21238163,254.65,254.59,12.3727]
[1732236537755,17.21238163,254.65,254.59,12.3727]
[1732236538284,19.21238163,254.67,254.6,19.21238163]
[1732236538656,19.21238163,254.67,254.59,12.3727]
[1732236539657,19.21238163,254.67,254.54,17.6786]
[1732236539980,19.21238163,254.67,254.58,19.21238163]
[1732236540276,19.21238163,254.67,254.65,3.0]
[1732236540658,12.01368395,254.68,254.65,3.0]
[1732236540857,6.4311,254.66,254.65,3.0]
[1732236541256,18.44478395,254.66,254.65,3.0]
[1732236541658,12.01368395,254.66,254.65,3.0]
[1732236542578,12.01368395,254.68,254.65,3.0]
[1732236542875,12.01368395,254.66,254.65,3.0]
[1732236543106,10.357,254.72,254.65,3.0]
[1732236543107,12.01368395,254.68,254.65,3.0]
[1732236545089,12.01368395,254.66,254.65,3.0]
[1732236545904,15.94048395,254.66,254.65,3.0]
[1732236546396,3.9268,254.66,254.65,3.0]
[1732236548800,27.703684,254.66,254.65,3.0]
[1732236548983,30.203684,254.66,254.65,3.0]
[1732236549178,30.203684,254.66,231.44,0.5048809]
[1732236549179,2.5,254.64,254.46,8.8419]
[1732236549485,12.01368395,254.55,254.48,12.01368395]
[1732236550300,3.9286,254.54,254.48,12.01368395]
[1732236550689,152.24178395,254.58,254.51,12.01368395]
[1732236550998,3.9277,254.61,254.54,12.01368395]
[1732236551199,12.01368395,254.6,254.52,12.01368395]
[1732236551383,15.94138395,254.61,254.53,12.01368395]
[1732236551579,12.01368395,254.58,254.51,12.01368395]
[1732236552600,15.94168395,254.58,254.51,12.01368395]
[1732236553309,15.94168395,254.58,254.49,3.5364]
[1732236553509,15.94168395,254.58,254.49,12.01368395]
[1732236553709,15.94168395,254.58,254.47,8.8419]
[1732236553710,12.01368395,254.54,254.47,12.01368395]
[1732236554787,15.94248395,254.53,254.45,12.01368395]
[1732236555001,15.94248395,254.53,254.43,8.8432]
[1732236555002,12.01368395,254.52,254.44,12.01368395]
[1732236555300,12.01368395,254.52,254.45,12.01368395]
[1732236555511,12.01368395,254.52,254.46,12.01368395]
[1732236555804,12.01368395,254.49,254.36,15.9352]
[1732236555997,12.01368395,254.49,254.41,12.01368395]
[1732236556321,136.3,254.48,254.41,12.01368395]
[1732236556607,12.01368395,254.47,254.41,12.01368395]
[1732236556811,3.9298,254.46,254.41,12.01368395]
[1732236557301,3.9298,254.46,254.39,12.01368395]
[1732236558005,12.01368395,254.45,254.37,12.01368395]
[1732236558304,3.9298,254.46,254.34,3.5384]
[1732236558305,12.01368395,254.43,254.35,12.01368395]
[1732236558612,12.01368395,254.41,254.33,24.39898395]
[1732236558790,3.9308,254.4,254.33,20.86028395]
[1732236559188,12.01368395,254.38,254.21,39.95477704]
[1732236559388,12.01368395,254.34,254.26,12.01368395]
[1732236559598,136.3,254.44,254.32,12.01368395]
[1732236559812,10.0431,254.47,254.39,12.01368395]
[1732236560104,12.01368395,254.5,254.41,12.01368395]
[1732236560690,12.01368395,254.48,254.41,12.01368395]
[1732236560912,12.01368395,254.5,254.41,12.01368395]
[1732236561101,15.94298395,254.5,254.41,15.55118395]
[1732236561595,12.01368395,254.52,254.43,12.01368395]
[1732236561913,12.01368395,254.56,254.47,12.01368395]
[1732236562109,12.01368395,254.54,254.45,12.01368395]
[1732236562302,12.01368395,254.52,254.44,12.01368395]
[1732236562486,12.01368395,254.48,254.41,8.8439]
[1732236563595,12.01368395,254.46,254.34,15.9352]
[1732236563800,12.01368395,254.43,254.35,24.39808395]
[1732236564000,12.01368395,254.47,254.37,12.01368395]
[1732236564206,140.2289,254.52,254.41,12.01368395]
[1732236564207,12.01368395,254.49,254.41,12.01368395]
[1732236564403,12.01368395,254.53,254.45,12.01368395]
[1732236564596,3.9287,254.54,254.47,12.01368395]
[1732236565089,12.01368395,254.53,254.45,12.01368395]
[1732236565804,12.01368395,254.51,254.43,12.01368395]
[1732236566006,12.01368395,254.49,254.41,20.85738395]
[1732236566208,3.9287,254.54,254.38,3.5379]
[1732236566209,12.01368395,254.47,254.39,12.01368395]
[1732236566514,12.01368395,254.45,254.37,12.01368395]
[1732236567116,15.94378395,254.45,254.37,12.01368395]
[1732236568115,12.01368395,254.41,254.33,12.01368395]
[1732236569308,12.01368395,254.39,254.29,16.3459]
[1732236569508,12.01368395,254.39,254.3,12.01368395]
[1732236570315,3.9303,254.43,254.3,12.01368395]
[1732236570523,12.01368395,254.42,254.32,12.01368395]
[1732236570818,12.01368395,254.4,254.32,12.01368395]
[1732236571215,12.01368395,254.42,254.34,12.01368395]
[1732236571720,12.01368395,254.4,254.32,12.01368395]
[1732236571899,12.01368395,254.42,254.32,12.01368395]
[1732236572422,3.9303,254.43,254.34,12.01368395]
[1732236573423,3.9303,254.43,254.36,12.01368395]
[1732236573936,3.9301,254.45,254.38,12.01368395]
[1732236574414,3.9301,254.45,254.36,12.01368395]
[1732236576807,12.01368395,254.42,254.32,12.01368395]
[1732236577519,12.01368395,254.38,254.3,20.86148395]
[1732236577709,12.01368395,254.36,254.29,16.3459]
[1732236578723,12.01368395,254.37,254.29,16.3459]
[1732236579717,12.01368395,254.37,254.28,12.01368395]
[1732236579718,2.5,254.29,254.28,12.01368395]
[1732236580522,2.5,254.33,254.28,12.01368395]
[1732236580822,2.5,254.33,254.32,12.01368395]
[1732236583427,2.5,254.37,254.33,12.3854]
[1732236583606,2.5,254.4,254.36,12.01368395]
[1732236583806,2.5,254.37,254.33,12.3854]
[1732236584001,2.5,254.37,254.36,12.01368395]
[1732236584826,2.5,254.37,254.36,24.39758395]
[1732236585301,2.5,254.4,254.36,24.39758395]
[1732236585510,2.5,254.37,254.36,24.39758395]
[1732236585823,2.5,254.37,254.36,12.01368395]
[1732236586130,2.5,254.37,254.34,15.55218395]
[1732236586421,2.5,254.37,254.27,17.6976]
[1732236586422,2.5,254.3,254.26,12.01368395]
[1732236586827,2.5,254.3,254.28,12.01368395]
[1732236587022,2.5,254.3,254.26,12.01368395]
[1732236587329,2.5,254.29,254.26,12.01368395]
[1732236587506,2.5,254.29,254.24,12.01368395]
[1732236587901,2.5,254.27,254.24,12.01368395]
[1732236589922,2.5,254.27,254.26,12.01368395]
[1732236590121,5.0,254.27,254.26,12.01368395]
[1732236590710,2.5,254.27,254.26,12.01368395]
[1732236591326,5.0,254.29,254.26,12.01368395]
[1732236591731,5.0,254.29,254.28,12.01368395]
[1732236591931,5.0,254.31,254.28,12.01368395]
[1732236592138,3.932,254.32,254.28,12.01368395]
[1732236592139,5.0,254.29,254.28,12.01368395]
[1732236592423,2.5,254.31,254.28,12.01368395]
[1732236592633,5.0,254.29,254.28,12.01368395]
[1732236593129,2.5,254.29,254.28,12.01368395]
[1732236593331,5.0,254.3,254.23,12.3901]
[1732236593542,2.5,254.25,254.2,18.6659]
[1732236593825,2.5,254.25,254.24,12.01368395]
[1732236594129,2.5,254.28,254.24,12.01368395]
[1732236594130,2.5,254.26,254.24,12.01368395]
[1732236594331,2.5,254.25,254.24,12.01368395]
[1732236594538,2.5,254.28,254.24,12.01368395]
[1732236594831,6.4325,254.29,254.2,27.5171]
[1732236594832,2.5,254.25,254.2,27.5171]
[1732236595214,2.5,254.27,254.2,27.5171]
[1732236595409,5.0,254.29,254.27,12.01368395]
[1732236595607,5.0,254.31,254.27,12.01368395]
[1732236595804,5.0,254.31,254.3,12.01368395]
[1732236596712,2.5,254.33,254.3,12.01368395]
[1732236596916,2.5,254.33,254.32,12.01368395]
[1732236597507,2.5,254.31,254.27,3.5394]
[1732236597707,2.5,254.33,254.3,12.01368395]
[1732236597941,2.5,254.33,254.32,12.01368395]
[1732236599415,2.5,254.35,254.32,15.55238395]
[1732236599616,2.5,254.35,254.34,12.01368395]
[1732236600009,5.0,254.35,254.34,12.01368395]
[1732236600209,5.0,254.35,254.32,12.01368395]
[1732236601221,2.5,254.35,254.34,12.01368395]
[1732236602234,2.5,254.35,254.32,12.01368395]
[1732236604629,2.5,254.35,254.34,12.01368395]
[1732236605842,2.5,254.35,254.31,8.8474]
[1732236606343,2.5,254.3,254.21,12.3912]
[1732236606553,2.5,254.28,254.27,12.01368395]
[1732236609856,2.5,254.32,254.28,3.5394]
[1732236610026,2.5,254.32,254.31,12.01368395]
[1732236611549,2.5,254.34,254.32,12.3859]
[1732236611745,2.5,254.36,254.33,12.01368395]
[1732236612042,2.5,254.49,254.35,24.0273679]
[1732236612246,2.5,254.49,254.48,12.01368395]
[1732236612445,502.5,254.5,254.48,12.01368395]
[1732236613227,500.0,254.5,254.49,12.01368395]
[1732236613845,441.12541166,254.5,254.49,12.01368395]
[1732236617054,382.25082332,254.5,254.49,24.0273679]
[1732236617752,365.58422332,254.5,254.49,44.0273679]
[1732236617931,357.86167997,254.5,254.49,47.9443679]
[1732236618130,341.19507997,254.5,254.49,54.5287679]
[1732236618646,328.36374833,254.5,254.49,88.79798946]
[1732236618837,328.36374833,254.5,254.49,88.95798946]
[1732236619446,318.78440433,254.5,254.49,88.95798946]
[1732236620041,276.95979313,254.5,254.49,88.95798946]
[1732236620238,229.95979313,254.5,254.49,88.95798946]
[1732236620450,181.23724978,254.5,254.49,88.95798946]
[1732236620647,118.23724978,254.5,254.49,88.95798946]
[1732236620849,118.23724978,254.5,254.49,45.96275273]
[1732236625762,118.23724978,254.5,254.49,26.7444]
[1732236625979,118.17831069,254.5,254.49,19.37835273]
[1732236627466,118.17831069,254.5,254.49,0.16]
[1732236631044,118.17831069,254.5,254.49,19.37835273]
[1732236634959,118.17831069,254.5,254.49,0.16]
[1732236635154,118.17831069,254.5,254.49,19.37835273]
[1732236637780,89.45068504,254.5,254.49,0.16]
[1732236638072,89.45068504,254.5,254.49,19.37835273]
[1732236638678,89.45068504,254.5,254.49,12.17795643]
[1732236638868,89.45068504,254.5,254.49,38.45255643]
[1732236639073,74.04668504,254.5,254.49,62.22944043]
[1732236639264,3.9272,254.64,254.51,23.776884]
[1732236639454,2.5,254.6,254.58,12.01795643]
[1732236639867,18.44515643,254.64,254.57,12.01795643]
[1732236640075,2.5,254.6,254.57,12.01795643]
[1732236640268,2.5,254.6,254.54,12.01795643]
[1732236640466,6.4278,254.6,254.54,12.01795643]
[1732236640669,3.9278,254.6,254.53,12.01795643]
[1732236640966,20.7308,254.76,254.6,20.0]
[1732236641164,12.01795643,254.71,254.6,20.0]
[1732236641381,2.5,254.73,254.6,20.0]
[1732236641561,6.4254,254.75,254.55,20.0]
[1732236641766,2.5,254.72,254.56,23.776884]
[1732236641963,3.9254,254.75,254.58,23.776884]
[1732236642170,3.9254,254.75,254.59,20.0]
[1732236642171,2.5,254.7,254.59,20.0]
[1732236642373,2.5,254.72,254.67,12.01795643]
[1732236642981,12.01795643,254.71,254.64,12.01795643]
[1732236643283,2.5,254.7,254.65,12.01795643]
[1732236643980,12.01795643,254.72,254.65,12.01795643]
[1732236643981,3.926,254.71,254.65,12.01795643]
[1732236644175,14.51795643,254.7,254.62,12.01795643]
[1732236644397,12.01795643,254.65,254.56,8.8385]
[1732236644579,14.51795643,254.65,254.56,8.8385]
[1732236644882,5.0,254.65,254.59,12.01795643]
[1732236645076,2.5,254.65,254.59,12.01795643]
[1732236645677,2.5,254.65,254.6,12.01795643]
[1732236646067,2.5,254.67,254.62,12.01795643]
[1732236646265,6.4267,254.67,254.62,12.01795643]
[1732236646463,2.5,254.65,254.62,12.01795643]
[1732236646682,2.5,254.67,254.62,12.01795643]
[1732236647179,2.5,254.71,254.64,12.01795643]
[1732236647385,2.5,254.71,254.67,12.01795643]
[1732236647572,2.5,254.71,254.66,12.01795643]
[1732236647769,2.5,254.69,254.66,12.01795643]
[1732236647966,2.5,254.71,254.66,12.01795643]
[1732236648583,2.5,254.71,254.68,12.01795643]
[1732236648890,2.5,254.71,254.67,12.01795643]
[1732236649095,2.5,254.66,254.54,3.5357]
[1732236649269,2.5,254.62,254.57,12.01795643]
[1732236649469,5.0,254.63,254.57,12.01795643]
[1732236649671,17.01795643,254.63,254.56,12.01795643]
[1732236649870,2.5,254.61,254.53,8.8397]
[1732236650068,2.5,254.6,254.54,12.01795643]
[1732236650293,2.5,254.6,254.53,8.8397]
[1732236650294,14.51795643,254.6,254.52,12.01795643]
[1732236650591,14.51795643,254.6,254.48,21.9149]
[1732236650592,2.5,254.57,254.53,12.01795643]
[1732236650769,2.5,254.57,254.52,12.01795643]
[1732236651174,2.5,254.59,254.54,12.01795643]
[1732236651385,12.01795643,254.62,254.56,12.01795643]
[1732236651691,2.5,254.62,254.58,12.01795643]
[1732236651928,18.2308,254.64,254.58,12.01795643]
[1732236652073,15.7308,254.64,254.58,12.01795643]
[1732236652267,18.2308,254.64,254.58,12.01795643]
[1732236652576,2.5,254.6,254.58,12.01795643]
[1732236652768,2.5,254.6,254.57,19.22511403]
[1732236653167,19.22511403,254.8,254.59,19.22511403]
[1732236653168,24.22511403,254.67,254.59,19.22511403]
[1732236653383,2.5,254.61,254.59,19.22511403]
[1732236653589,21.72511403,254.67,254.59,19.22511403]
[1732236653590,2.5,254.62,254.59,19.22511403]
[1732236654089,2.5,254.63,254.59,19.22511403]
[1732236654289,2.5,254.66,254.59,22.76011403]
[1732236654494,2.5,254.62,254.61,19.22511403]
[1732236655293,2.5,254.56,254.53,19.22511403]
[1732236655476,2.5,254.57,254.53,19.22511403]
[1732236655677,2.5,254.6,254.53,19.22511403]
[1732236655886,2.5,254.57,254.53,19.22511403]
[1732236656206,2.5,254.57,254.53,22.76091403]
[1732236656383,2.5,254.6,254.53,22.76091403]
[1732236656589,2.5,254.57,254.53,22.76091403]
[1732236657100,2.5,254.57,254.53,19.22511403]
[1732236657274,2.5,254.57,254.54,0.16]
[1732236657899,2.5,254.6,254.54,0.16]
[1732236658086,2.5,254.56,254.54,0.16]
[1732236658402,21.72511403,254.56,254.54,0.16]
[1732236659287,2.5,254.56,254.54,0.16]
[1732236660282,2.5,254.53,254.5,19.22511403]
[1732236660495,2.5,254.48,254.44,19.22511403]
[1732236661185,2.5,254.48,254.46,19.22511403]
[1732236661500,2.5,254.52,254.46,19.22511403]
[1732236661703,2.5,254.52,254.49,19.22511403]
[1732236661917,2.5,254.57,254.51,19.22511403]
[1732236662203,2.5,254.61,254.56,19.22511403]
[1732236662379,2.5,254.61,254.52,0.58910164]
[1732236662380,2.5,254.61,254.58,19.22511403]
[1732236662781,2.5,254.59,254.58,19.22511403]
[1732236662996,2.5,254.59,254.54,19.22511403]
[1732236662997,2.5,254.57,254.54,19.22511403]
[1732236663199,2.5,254.57,254.52,19.22511403]
[1732236663601,5.0,254.59,254.52,19.22511403]
[1732236663789,2.5,254.57,254.52,22.76111403]
[1732236664205,2.5,254.57,254.54,19.22511403]
[1732236664502,2.5,254.59,254.56,19.22511403]
[1732236664906,2.5,254.61,254.56,19.22511403]
[1732236665488,2.5,254.59,254.56,22.76051403]
[1732236665893,2.5,254.61,254.58,19.22511403]
[1732236666108,2.5,254.61,254.6,19.22511403]
[1732236666527,2.5,254.59,254.54,22.76081403]
[1732236666693,2.5,254.57,254.52,19.22511403]
[1732236667006,2.5,254.55,254.52,19.22511403]
[1732236667398,2.5,254.55,254.51,12.3764]
[1732236667399,2.5,254.55,254.51,37.37930571]
[1732236667795,2.5,254.51,254.5,0.39292731]
[1732236667997,5.0,254.51,254.5,0.39292731]
[1732236668386,30.00290571,254.51,254.5,0.39292731]
[1732236668592,33.93200571,254.51,254.5,0.39292731]
[1732236669704,2.5,254.36,254.32,3.5388]
[1732236669895,2.5,254.33,254.31,8.8473]
[1732236671420,2.5,254.35,254.31,8.8473]
[1732236671710,2.5,254.36,254.31,8.8473]
[1732236671922,2.5,254.36,254.35,25.00290571]
[1732236672122,2.5,254.38,254.31,8.8473]
[1732236672295,2.5,254.42,254.35,25.00290571]
[1732236672612,27.50290571,254.44,254.31,8.8473]
[1732236672613,2.5,254.43,254.37,25.00290571]
[1732236672817,2.5,254.43,254.39,25.00290571]
[1732236673110,2.5,254.46,254.41,25.00290571]
[1732236673317,2.5,254.46,254.43,25.00290571]
[1732236673501,2.5,254.51,254.45,25.00290571]
[1732236673709,2.5,254.51,254.48,3.5366]
[1732236674014,2.5,254.51,254.48,12.3781]
[1732236674214,2.5,254.56,254.49,25.00290571]
[1732236674404,25.00290571,254.58,254.51,25.00290571]
[1732236674405,2.5,254.54,254.51,25.00290571]
[1732236675124,2.5,254.54,254.51,24.71318538]
[1732236675637,2.5,254.55,254.51,24.71318538]
[1732236675797,2.5,254.55,254.52,3.536]
[1732236676525,2.5,254.53,254.48,8.8415]
[1732236676731,2.5,254.53,254.48,12.378]
[1732236677614,2.5,254.57,254.51,25.00290571]
[1732236677916,2.5,254.55,254.51,25.00290571]
[1732236678327,5.0,254.59,254.51,25.00290571]
[1732236678619,2.5,254.59,254.51,25.00290571]
[1732236678823,2.5,254.59,254.53,25.00290571]
[1732236679320,2.5,254.59,254.56,25.00290571]
[1732236679617,2.5,254.57,254.52,37.37900571]
[1732236679797,2.5,254.57,254.52,12.3761]
[1732236680203,2.5,254.55,254.52,12.3761]
[1732236680820,2.5,254.57,254.52,12.3761]
[1732236681218,27.50290571,254.6,254.53,25.00290571]
[1732236681605,2.5,254.58,254.53,25.00290571]
[1732236681816,25.00290571,254.6,254.55,25.00290571]
[1732236681817,2.5,254.6,254.55,25.00290571]
[1732236683223,2.5,254.6,254.53,25.00290571]
[1732236684220,2.5,254.6,254.51,45.00290571]
[1732236684221,2.5,254.58,254.51,45.00290571]
[1732236684436,2.5,254.57,254.51,25.00290571]
[1732236684905,25.00290571,254.59,254.55,25.00290571]
[1732236684906,2.5,254.59,254.55,25.00290571]
[1732236685334,2.5,254.63,254.58,25.00290571]
[1732236685509,2.5,254.63,254.62,25.00290571]
[1732236685909,2.5,254.66,254.62,25.00290571]
[1732236686109,20.1128,254.74,254.65,25.00290571]
[1732236686110,2.5,254.7,254.65,25.00290571]
[1732236686309,2.5,254.7,254.62,25.00290571]
[1732236686310,2.5,254.67,254.62,25.00290571]
[1732236686527,2.5,254.64,254.62,25.00290571]
[1732236687127,2.5,254.64,254.6,25.00290571]
[1732236687325,5.0,254.64,254.58,25.00290571]
[1732236687539,2.5,254.63,254.58,25.00290571]
[1732236687839,2.5,254.6,254.56,25.00290571]
[1732236688428,2.5,254.61,254.58,25.00290571]
[1732236689623,2.5,254.61,254.59,12.3727]
[1732236690015,2.5,254.65,254.6,25.00290571]
[1732236690217,2.5,254.65,254.61,25.00290571]
[1732236690518,2.5,254.67,254.64,25.00290571]
[1732236690821,2.5,254.67,254.59,12.3727]
[1732236690822,2.5,254.67,254.61,25.00290571]
[1732236691218,2.5,254.65,254.61,25.00290571]
[1732236691632,2.5,254.65,254.62,12.3712]
[1732236692522,2.5,254.64,254.62,12.3712]
[1732236692830,2.5,254.63,254.62,12.3712]
[1732236693732,2.5,254.66,254.62,8.8366]
[1732236693933,2.5,254.65,254.62,8.8366]
[1732236695011,2.5,254.66,254.62,8.8366]
[1732236695215,2.5,254.65,254.62,8.8366]
[1732236697052,2.5,254.67,254.62,8.8366]
[1732236697345,2.5,254.67,254.62,25.00290571]
[1732236697537,2.5,254.68,254.62,25.00290571]
[1732236697717,2.5,254.67,254.62,25.00290571]
[1732236698423,2.5,254.66,254.62,25.00290571]
[1732236698618,2.5,254.67,254.63,12.3708]
[1732236699318,2.5,254.66,254.63,12.3708]
[1732236699518,2.5,254.67,254.63,12.3708]
[1732236699719,2.5,254.68,254.63,12.3708]
[1732236700015,2.5,254.66,254.63,12.3708]
[1732236702223,5.0,254.68,254.63,12.3708]
[1732236702639,2.5,254.68,254.64,13.21101711]
[1732236703224,2.5,254.66,254.64,13.21101711]
[1732236703840,2.5,254.68,254.64,13.21101711]
[1732236704146,2.5,254.65,254.62,13.21101711]
[1732236704648,2.5,254.68,254.59,12.3727]
[1732236704649,5.0,254.6,254.59,12.3727]
[1732236704847,5.0,254.6,254.59,8.8377]
[1732236705947,2.5,254.6,254.59,8.8377]
[1732236706841,2.5,254.6,254.55,30.88921711]
[1732236707046,2.5,254.6,254.57,13.21101711]
[1732236707427,2.5,254.6,254.59,13.21101711]
[1732236708847,5.0,254.64,254.59,16.74601711]
[1732236709232,2.5,254.64,254.59,25.58371711]
[1732236709534,2.5,254.65,254.59,25.58371711]
[1732236709731,2.5,254.6,254.59,25.58371711]
[1732236709944,2.5,254.65,254.59,25.58371711]
[1732236710248,2.5,254.6,254.59,25.58371711]
[1732236710543,2.5,254.6,254.59,12.3727]
[1732236710721,2.5,254.63,254.59,8.8377]
[1732236710925,2.5,254.6,254.59,8.8377]
[1732236712052,5.0,254.64,254.59,8.8377]
[1732236712233,2.5,254.6,254.59,8.8377]
[1732236712423,2.5,254.64,254.59,8.8377]
[1732236712627,2.5,254.6,254.59,8.8377]
[1732236713552,5.0,254.64,254.59,8.8377]
[1732236713727,2.5,254.6,254.59,8.8377]
[1732236714047,2.5,254.6,254.59,25.58371711]
[1732236715033,2.5,254.64,254.59,29.50071711]